Cogmind - Beta 14 @@@ ROGUE MODE // 2024.11.26 @ 11:53:24 Player: WazdakkaGutsmek Result: Destroyed by X7-YN1(R) with Subdweller Laser Performance ------------- Evolutions (0) 0 Regions Visited (2) 400 Robots Destroyed (19) 95 Value Destroyed (539) 539 Prototype IDs (2) 40 Alien Tech Used (0) 0 Bonus (-136) -136 TOTAL SCORE: 938 Bonus ------- Friendly Fire -136 Cogmind --------- Core Integrity 0/250 Matter 300/300 Energy 180/180 System Corruption 0% Temperature Cool (23) Movement Walking (130) Location -10/Subcaves Parts ------- > --- POWER (1) -------- Meta Core > --- PROPULSION (2+1) - Cargo Legs > --- UTILITY (2+3) ---- Disposable Heat Sink Large Storage Unit (+) Makeshift Light Armor Plating > --- WEAPON (2+1) ----- Subdweller Laser Makeshift Laser > --- INVENTORY (15) --- Ion Engine Peak State ------------ > --- POWER ------------ Meta Core > --- PROPULSION ------- Cargo Legs > --- UTILITY ---------- Disposable Heat Sink Large Storage Unit Makeshift Light Armor Plating > --- WEAPON ----------- Subdweller Laser Makeshift Laser > --- INVENTORY -------- Ion Engine [Rating: 42] Favorites ----------- Power Ion Engine Engine Ion Engine Power Core Meta Core Propulsion Light Treads Treads Light Treads Leg Aluminum Leg Utility Large Storage Unit Device Disposable Heat Sink Storage Large Storage Unit Protection Makeshift Light Armor Plating Weapon Assault Rifle Energy Gun Makeshift Laser Energy Cannon Subdweller Beam Cannon Ballistic Gun Assault Rifle Build | -11 -10 -10 ------- Run | Yrd Mat Sub Slots Evolved . | . . . Power . | . . . Propulsion . | . . . Utility . | . . . Weapon . | . . . Parts Attached 12 | . 2 10 Power 1 | . . 1 Engine . | . . . Core 1 | . . 1 Reactor . | . . . Propulsion 3 | . . 3 Treads 2 | . . 2 Leg 1 | . . 1 Wheel . | . . . Hover . | . . . Flight . | . . . Utility 3 | . 1 2 Device 1 | . . 1 Storage 1 | . 1 . Processor . | . . . Hackware . | . . . Protection 1 | . . 1 Artifact . | . . . Weapon 5 | . 1 4 Energy Gun 2 | . . 2 Energy Cannon 1 | . . 1 Ballistic Gun 2 | . 1 1 Ballistic Cannon . | . . . Launcher . | . . . Special Weapon . | . . . Impact Weapon . | . . . Slashing Weapon . | . . . Piercing Weapon . | . . . Special Melee Weapon . | . . . Unidentified Prototypes 2 | . . 2 Parts Lost 2 | . . 2 Power 1 | . . 1 Propulsion . | . . . Utility . | . . . Weapon 1 | . . 1 Highest Loss Streak 1 | . . 1 To Critical Strikes . | . . . Average Slot Usage (%) 81 | . 100 75 Engine 9 | . 14 7 Core 2 | . . 3 Treads 8 | . . 11 Leg 11 | . 28 5 Device 6 | . . 8 Storage 17 | . 28 13 Protection 1 | . . 1 Energy Gun 5 | . . 7 Energy Cannon 2 | . . 3 Ballistic Gun 15 | . 28 10 Peak Build Rating 42 | . 7 42 Average Rating 19 | . 6 24 On Entrance 6 | 6 6 7 Naked Turns . | . . . Heaviest Build 37 | 13 33 37 Greatest Support 55 | 20 20 55 Greatest Overweight (x) 1 | . 1 . Average Overweight (x) . | . . . Largest Inventory Capacity 15 | . 15 15 Average Capacity 14 | . 14 15 Most Carried 6 | . 6 5 Average Carried 2 | . 5 1 Final Capacity 15 | 8 15 15 Final Carried 6 | 6 5 1 Class Distribution -------------------- 100% | Mutant Dominant Class ---------------- Mutant | -10/Materials Mutant | -10/Subcaves Resources | -11 -10 -10 ----------- Run | Yrd Mat Sub Matter Collected 575 | 200 120 255 Remotely . | . . . Salvage Created 611 | . 185 426 Parts 31 | . 11 20 Haulers Intercepted . | . . . Recyclers Shooed . | . . . Parts Field Recycled . | . . . Retrieved Matter . | . . . Parts Self-Destructed 4 | . . 4 Prevented . | . . . Kills | -11 -10 -10 ------- Run | Yrd Mat Sub Combat Hostiles Destroyed 18 | . 6 12 Guns 18 | . 6 12 Classes Destroyed 5 | . 3 2 Operator 1 | . 1 . Swarmer 6 | . 3 3 Grunt 5 | . 3 2 Artisan 2 | . . 2 Subdweller 7 | . . 7 Best Kill Streak 4 | . 4 2 Combat Bots Only 4 | . 4 2 Max Kills in Single Turn 2 | . 2 1 Gunslinging 1 | . 1 . Exploded . | . . . Melee . | . . . Uniques/NPCs Destroyed . | . . . Combat | -11 -10 -10 -------- Run | Yrd Mat Sub Hostile Shots Fired 87 | . 32 55 Missed 22 | . 8 14 Damage Taken 1079 | . 234 845 Core 259 | . 94 165 Absorbed by Shields . | . . . Core Remaining (%) 100 | 100 . . Volleys Fired 88 | . 25 63 Largest 2 | . 2 2 Hottest 130 | . 40 130 Shots Fired 172 | . 50 122 Gun 165 | . 50 115 Cannon 7 | . . 7 Launcher . | . . . Special . | . . . Kinetic 121 | . 50 71 Thermal 51 | . . 51 Explosive . | . . . Electromagnetic . | . . . Robot Hit Streak 15 | . 12 15 Robot Miss Streak 3 | . 2 3 Penetration Max . | . . . Secondary Targets 3 | . 2 1 Max Gunslinging Chain 1 | . 1 1 Shots Hit Robots 103 | . 36 67 Core Hits 41 | . 13 28 Critical Kills . | . . . Critical Parts Destroyed . | . . . Critical Strikes 2 | . . 2 Burn 2 | . . 2 Melee Attacks . | . . . Impact . | . . . Slashing . | . . . Piercing . | . . . Sneak Attacks . | . . . Combat Hostiles . | . . . Follow-up Attacks . | . . . Damage Inflicted 1337 | . 392 945 Guns 1251 | . 388 863 Cannons 82 | . . 82 Explosions . | . . . Melee . | . . . Ramming 4 | . 4 . Kinetic 837 | . 388 449 Thermal 496 | . . 496 Explosive . | . . . Electromagnetic . | . . . Impact . | . . . Slashing . | . . . Piercing . | . . . Highest Corruption . | . . . Average Corruption . | . . . Corruption Purged . | . . . Corruption Blocked . | . . . Overload Shots . | . . . Overflow Damage 14 | . . 14 Projectiles 14 | . . 14 Explosions . | . . . Melee . | . . . Knockbacks . | . . . Impact . | . . . Kinetic . | . . . Secondary . | . . . Self-Inflicted Damage . | . . . Shots . | . . . Rammed . | . . . Targets Rammed 1 | . 1 . Kicked 1 | . 1 . Crushed . | . . . Highest Temperature 45 | . 12 45 Average Temperature 11 | . 6 13 Received Heat Transfer 261 | . 90 171 Siege Activations . | . . . Robots Corrupted . | . . . Combat Hostiles . | . . . Parts Fried . | . . . Impact Corruptions . | . . . Robots Melted . | . . . Combat Hostiles . | . . . Parts Melted 1 | . . 1 Heat Transferred 1111 | . . 1111 Parts Sabotaged . | . . . Parts Stolen . | . . . Parts Stripped . | . . . Power Chain Reactions . | . . . Alert | -11 -10 -10 ------- Run | Yrd Mat Sub Peak Influence 140 | . 140 . Initial . | . . . Average 58 | . 58 . Maximum Alert Level . | . . . Low Security (%) 100 | . 100 . Level 1 . | . . . Level 2 . | . . . Level 3 . | . . . Level 4 . | . . . Level 5 . | . . . High Security . | . . . Max Security . | . . . Squads Dispatched 1 | . 1 . Investigation 1 | . 1 . Extermination . | . . . Reinforcement . | . . . Assault . | . . . Garrison . | . . . Intercept . | . . . Searches Triggered . | . . . Construction Impeded . | . . . Haulers Reinforced . | . . . Active Scanning Responses . | . . . Cargo Convoy Interrupts . | . . . Stealth | -11 -10 -10 --------- Run | Yrd Mat Sub Distress Signals 1 | . 1 . Communications Jammed . | . . . Distress Signals . | . . . Times Spotted 24 | . 10 14 Peak Tracking Total 4 | . 4 3 Tactical Retreats 2 | . 1 1 Traps | -11 -10 -10 ------- Run | Yrd Mat Sub Traps Triggered 2 | . 1 1 Indirectly . | . . . Trap Hack Attempts . | . . . Triggered . | . . . Disarmed . | . . . Reprogrammed . | . . . Reused . | . . . Traps Extracted . | . . . Installed . | . . . Triggered . | . . . Machines | -11 -10 -10 ---------- Run | Yrd Mat Sub Machines Disabled 2 | . . 2 Max in Single Turn 1 | . . 1 Machines Repaired . | . . . Machines Dismantled . | . . . Machines Sabotaged . | . . . Overloaded Fab Kills . | . . . Hacking | -11 -10 -10 --------- Run | Yrd Mat Sub Machines Accessed 2 | . 2 . Terminals 2 | . 2 . Fabricators . | . . . Repair Stations . | . . . Recycling Units . | . . . Scanalyzers . | . . . Garrison Access . | . . . Total Hacks 2 | . 2 . Successful . | . . . Failed 2 | . 2 . Catastrophic 1 | . 1 . Database Lockouts . | . . . Manual 2 | . 2 . Terminals 2 | . 2 . Fabricators . | . . . Repair Stations . | . . . Recycling Units . | . . . Scanalyzers . | . . . Garrison Access . | . . . Terminal Hacks . | . . . Fabricator Hacks . | . . . Repair Station Hacks . | . . . Recycling Unit Hacks . | . . . Scanalyzer . | . . . Garrison Access Hacks . | . . . Unauthorized Hacks . | . . . Terminals . | . . . Fabricators . | . . . Repair Stations . | . . . Recycling Units . | . . . Scanalyzers . | . . . Garrison Access . | . . . Data Cores Recovered 1 | . 1 . Used 1 | . 1 . Hacking Detections 1 | . 1 . Full Trace Events . | . . . Feedback Events . | . . . Feedback Blocked . | . . . Robot Schematics Acquired . | . . . Robots Built . | . . . Authchips . | . . . Time . | . . . Total Robot Build Rating . | . . . Part Schematics Acquired . | . . . Parts Built . | . . . Authchips . | . . . Time . | . . . Total Part Build Rating . | . . . Parts Repaired . | . . . Time . | . . . Parts Recycled . | . . . Recycled Matter . | . . . Retrieved Matter . | . . . Retrieved Components . | . . . Parts Scanalyzed . | . . . Part Schematics Acquired . | . . . Parts Damaged . | . . . Bothacking | -11 -10 -10 ------------ Run | Yrd Mat Sub Used RIF Installer . | . . . Robots Hacked . | . . . Non-combat . | . . . Combat . | . . . Robot Hacks Applied . | . . . Relay Couplers Released . | . . . Fabnet Peak Effective % . | . . . Robots Rewired . | . . . Allies Hacked . | . . . Hacks Repelled . | . . . Allies | -11 -10 -10 -------- Run | Yrd Mat Sub Total Allies . | . . . Largest Group . | . . . Highest-Rated Group . | . . . Highest-Rated Ally . | . . . Total Orders . | . . . Ally Attacks . | . . . Total Damage . | . . . Kills . | . . . Allies Corrupted . | . . . Allies Melted . | . . . Intel | -11 -10 -10 ------- Run | Yrd Mat Sub Robot Analysis Total . | . . . Derelict Logs Recovered 2 | . . 2 Drone Launches . | . . . Drone Recoveries . | . . . Exploration | -11 -10 -10 ------------- Run | Yrd Mat Sub Turns Passed 1855 | . 502 1353 Spaces Moved 1012 | 1 201 810 Core . | . . . Treads 304 | . . 304 Legs 708 | 1 201 506 Wheels . | . . . Hover . | . . . Flight . | . . . Fastest Speed 120 | 120 120 130 Average Speed 150 | 120 188 141 Slowest Speed 190 | 120 190 160 Overloaded Moves . | . . . Propulsion Burnouts . | . . . Robots Hopped . | . . . Cave-ins Triggered . | . . . Exploration Rate (%) 28 | 1 31 53 Regions Visited 2 Branch Regions 1 Pre-discovered Areas . | . . . Known Exits Taken . | . . . Unknown Exits Taken 2 | 1 1 . Scrap Searched 2 | . . 2 Spaces Dug . | . . . Terrain Destroyed . | . . . Melee . | . . . Projectile . | . . . AOE . | . . . Terrain Rammed . | . . . Walls Destroyed . | . . . Machines Disabled . | . . . Actions | -11 -10 -10 --------- Run | Yrd Mat Sub Total 1179 | . 279 900 Wait 58 | . 50 8 Move 1010 | . 200 810 Hop . | . . . Pick Up 1 | . . 1 Fast Attach 6 | . 1 5 Attach 3 | . . 3 Detach . | . . . Swap 3 | . 1 2 Drop 9 | . 1 8 Fire 88 | . 25 63 Melee . | . . . Ram . | . . . Kick 1 | . 1 . Crush . | . . . Escape Stasis . | . . . Rewire . | . . . Trap . | . . . Miscellaneous . | . . . Route ------- -11/Scrapyard -10/Materials -10/Subcaves (discovered 1 exit: [*Mat]) History --------- Turn | Location | Event 1 | -11/Scrapyard | Discovered new exit (range 0) 1 | -11/Scrapyard | Entered Materials 315 | -10/Materials | Build established: Mutant 490 | -10/Materials | Discovered new exit (range 8) 503 | -10/Materials | Entered Subcaves 611 | -10/Subcaves | Shifting Twisted Machinery released Battle Rifle 635 | -10/Subcaves | Shifting Twisted Machinery released Sub. Beam Cannon 759 | -10/Subcaves | A swath of the cavern ceiling suddenly collapsed 1058 | -10/Subcaves | Visited 4L-MR0's lab 1074 | -10/Subcaves | Found Prototype Leg 1074 | -10/Subcaves | Identified Cargo Legs 1076 | -10/Subcaves | Attached Cargo Legs, gained temporary slots: Utility x2 1262 | -10/Subcaves | Discovered new exit (range 10) 1263 | -10/Subcaves | A Subdweller sparked back to life 1263 | -10/Subcaves | A Subdweller sparked back to life 1263 | -10/Subcaves | A Subdweller sparked back to life 1273 | -10/Subcaves | Core integrity fell below 50% 1289 | -10/Subcaves | Found Prototype Power Core 1289 | -10/Subcaves | Identified Meta Core 1290 | -10/Subcaves | Attached Meta Core, gained temporary slots: Propulsion, Utility, Weapon 1372 | -10/Subcaves | Ambushed by Subdwellers from Twisted Machinery 1373 | -10/Subcaves | Core integrity fell below 20% 1512 | -10/Subcaves | A swath of the cavern ceiling suddenly collapsed 1571 | -10/Subcaves | Shifting Twisted Machinery released Shrapnel Trap 1618 | -10/Subcaves | Learned Materials terminal intel 1856 | -10/Subcaves | Destroyed by X7-YN1(R) with Subdweller Laser Last Messages --------------- Source. A swath of the cavern ceiling suddenly collapses. Shrapnel Trap falls loose from the Twisted Machinery. 01609_ Acquired Mak. Light Armor Plating. 01611_ VR-SGH(O) suffers critical hit (Burn). 01618_ Acquired derelict log, extracted data. Data stored: Materials terminal intel. 01666_ DA-HD7(u) cries out in pain. 01666_ DA-HD7(u) destroyed. 01670_ Acquired 14 matter. 01690_ W2-YE8(R): "LEAVESUB!" 01692_ Assault Rifle destroyed. 01695_ W2-YE8(R) destroyed. 01705_ Acquired Sub. Laser. 01809_ Acquired 28 matter. 01809_ Triggered Piercing Trap. 01809_ Spikes shoot up from the floor. 01809_ Critical hit (Impale). Map ----- +----------------------------------------------------+ | ?????????????????????????????????????#### ## | | ?????????????????????????????????????# # | | ????????????????????????????????????## | | ??????????????????????????????????### ## | | ?????????????????????????# #### ### # ## | | ?????????????????????# | | ??????????????????????????### ##### # | | ????????????????????????????????############# | | ?????????????????????????????#### #?????????# | | ?????????????????????????????# #??####??## | | ???????????????????????##????# #### #### | | ???????????????????????# #???# ## # | | ??????????????????????## #??# | | ?????????????????????## ### # | | ?????????????????????# | | ??????????????????????### [## | | ????????????????##?????## ## "" ## | | ???????????????## ?????# ### """#### | | ??????????????## ?????## ##?# ""#? | | ??????????????# R ?????# = ##??#### ##?" | | ??????????????? ?????#### #??##### #?#" | | ???????????????? #??###### #### ## #?#" | | ????????????????## ?## ## * #?"" | | ????????????????# ##* "" """"" "" " | | ?????????????????# = ##" & #"###"""""" | | ?????????????????# @ #####" ####?#"""""" | | ????????????????# # ##!###### #????#" """" | | ????????????????#?###### !" #### ##???#" """ | | ????????????????????##=!!|" #?# ##??##""##? | | ????????????????????# / """###" ##??####?? | | ?????????????????#### ##"" ####????? | | ????????????????## "" "" "" #????? | | ???????????????## " """"""" ##????? | | ??????????????## ##"" "####### ##?????? | | ??????????????# ## """#?????####??????? | | ??????????????#### ## "" ??"????????????? | | ?????????????????# ## "# #" #???????????? | | ?????????????????# #?#####" ???????????? | | ????????????????## #????? #?????####??? | | ???????????????## #??##?" #???? #?? | | ???????????????# #??# ## #???? ?? | | ???????????????# #?## ##?? ??? | | ???????????????## #?# #?? #???? | | ????????????????#### #?# #?# #???? | | ???????????????????# #?? ## ### ? | | ??????????????????## #??# ## | | ????????????????### #??# ""# ? | | ???????????????## #???# "## ????? | | ??????????????## ## ##?## "##???????? | | ??????????????# ## ### "#????????? | +----------------------------------------------------+ Best States ------------- Heat Dissipation 25 Coolant Potential 50 Energy Generation 17 Energy Capacity 250 Matter Stores 300 Matter Capacity 300 Sight Range 16 Terrain Scan Density 10 Armor Coverage 100 Evasion (%) 55 Recoil Reduction 2 Item Schematics ----------------- None Robot Schematics ------------------ None Fabricated ------------ Nothing Alien Tech Used ----------------- None Achievements -------------- None Challenges ------------ None Game ------ Seed MomentumReinforcedBlade Manual? 0 Play Time 00:11:25 Cumulative 149.3 hours Start 2024.11.26 @ 09:10:08 End 2024.11.26 @ 11:53:24 Sessions 3 Manual Loads 0 Difficulty Rogue Special Mode None Game No. 139 Rogue 120 Adventurer 16 Explorer 3 Win Type - Total 10 Types 8/0/1/1/0/0/0/0/0 Lore% 37 Gallery% 68 Achievement% 59 Wizard Run 0 Options --------- Layout 2 ASCII 0 Keyboard 0 Movement Numpad Keybinds 1 Fullscreen 2 Font 24/Terminus Map View 50x44 Zoom Use 0% Tactical HUD 1 Map Filters NONE Filters NONE Steam 1 RUN: 97b2a1d0-955d-4188-b0a6-b3a3177fad93